fUSD/lending_fUSD_20240101
["ID","MTS","AMOUNT","RATE_DAILY","PERIOD"]
[309751173,1704072647718,-16450.98256788,0.00035,2]
[309751174,1704072647728,-201.11617094,0.00035,2]
[309751175,1704072647739,-2500.0,0.00035,2]
[309751176,1704072647749,-150.1,0.00035,3]
[309751177,1704072647758,-650.0,0.00035,3]
[309751178,1704072647768,-150.0,0.00035,2]
[309751179,1704072647777,-223.14356951,0.00035,2]
[309751180,1704072647786,-150.0,0.00035051,2]
[309751181,1704072647795,-500.0,0.00035092,2]
[309751182,1704072647803,-555.55555,0.00035098,2]
[309751183,1704072647813,-150.0,0.00035196,2]
[309751184,1704072647822,-555.55555,0.00035198,2]
[309751185,1704072647831,-320.0,0.0003522,2]
[309751186,1704072647840,-555.55555,0.00035298,2]
[309751187,1704072647849,-150.0,0.00035314,2]
[309751188,1704072647859,-3178.07253986,0.00035324,2]
[309751189,1704072647868,-832.38423602,0.00035326,2]
[309751190,1704072647877,-281.55,0.00035339,2]
[309751191,1704072647887,-150.0,0.00035339,2]
[309751192,1704072647896,-150.0,0.00035339,2]
[309751193,1704072647906,-519.94,0.00035339,2]
[309751194,1704072647915,-554.58,0.00035339,2]
[309751195,1704072647924,-264.73,0.00035339,2]
[309751196,1704072647934,-519.94,0.00035339,2]
[309751197,1704072647943,-313.15,0.00035339,2]
[309751198,1704072647952,-321.48,0.00035339,2]
[309751199,1704072647962,-555.55555,0.00035398,2]
[309751200,1704072647972,-150.0,0.00035479,2]
[309751201,1704072647982,-555.55555,0.00035498,2]
[309751202,1704072647991,-1155.78988924,0.000355,2]
[309751203,1704072648001,-150.0,0.00035512,2]
[309751204,1704072648010,-150.0,0.00035556,2]
[309751205,1704072648020,-500.0,0.00035563,2]
[309751206,1704072648029,-800.0,0.00035563,5]
[309751207,1704072648039,-167.0,0.00035584,2]
[309751208,1704072648049,-555.55555,0.00035598,2]
[309751209,1704072648058,-150.0,0.00035608,2]
[309751210,1704072648068,-3055.57,0.00035616,2]
[309751211,1704072648078,-150.0,0.00035616,2]
[309751212,1704072648087,-153.87,0.00035616,2]
[309751213,1704072648096,-150.0,0.00035622,2]
[309751214,1704072648106,-25108.27312724,0.00035638,4]
[309751215,1704072648115,-279.95435992,0.00035638,4]
[309751216,1704072648124,-555.55555,0.00035698,2]
[309751217,1704072648134,-150.0,0.00035699,2]
[309751218,1704072648143,-175.81,0.00035741,2]
[309751219,1704072648153,-269.83478959,0.00035759,2]
[309751220,1704072648163,-555.55555,0.00035798,2]
[309751221,1704072648172,-150.0,0.00035828,2]
[309751222,1704072648181,-219.74,0.00035888,2]
[309751223,1704072648192,-555.55555,0.00035898,2]
[309751224,1704072648202,-7500.0,0.000359,2]
[309751225,1704072648214,-187.20901984,0.000359,2]
[309751226,1704072648224,-13219.96,0.000359,2]
[309751227,1704072648234,-2124.18,0.000359,2]
[309751228,1704072648243,-1490.41,0.000359,2]
[309751229,1704072648252,-545.0,0.00035934,5]
[309751230,1704072648262,-169.23541449,0.0003599,2]
[309751231,1704072648274,-2935.14746776,0.00035998,4]
[309751232,1704072648285,-435.02642299,0.00035998,4]
[309751233,1704072648294,-155.0,0.00035998,4]
[309751234,1704072648305,-369.59704817,0.00035998,4]
[309751235,1704072648316,-574.02915906,0.00035998,4]
[309751236,1704072648326,-555.55555,0.00035998,2]
[309751237,1704072648335,-155.0,0.00035999,4]
[309751238,1704072648344,-83306.5153412,0.00036,4]
[309751239,1704072648353,-479804.3959691,0.00036,2]
[309751240,1704072648364,-190.63016,0.00036,7]
[309751241,1704072648374,-151.0,0.00036,7]
[309751242,1704072648385,-150.0,0.00036014,2]
[309751243,1704072648396,-150.0,0.00036025,2]
[309751244,1704072648407,-150.0,0.00036033,2]
[309751245,1704072648418,-500.0,0.00036034,2]
[309751246,1704072648428,-740.68,0.00036043,2]
[309751247,1704072648438,-174.85041403,0.00036061,8]
[309751248,1704072648447,-5249.88370758,0.00036089,2]
[309751249,1704072648458,-5249.88370754,0.00036089,2]
[309751250,1704072648468,-5249.88370754,0.00036089,2]
[309751251,1704072648477,-5249.88370754,0.00036089,2]
[309751252,1704072648486,-5249.88370754,0.00036089,2]
[309751253,1704072648497,-5249.88370754,0.00036089,2]
[309751254,1704072648509,-150.0,0.00036097,2]
[309751255,1704072648518,-150.0,0.00036097,2]
[309751256,1704072648529,-150.0,0.00036097,2]
[309751257,1704072648538,-150.0,0.00036097,2]
[309751258,1704072648549,-150.0,0.00036097,2]
[309751259,1704072648560,-150.0,0.00036097,2]
[309751260,1704072648569,-150.0,0.00036097,2]
[309751261,1704072648578,-150.0,0.00036097,2]
[309751262,1704072648589,-150.0,0.00036097,2]
[309751263,1704072648599,-151.61,0.00036097,2]
[309751264,1704072648610,-666.66666,0.00036098,2]
[309751265,1704072648622,-313.15,0.00036161,2]
[309751266,1704072648632,-313.15,0.00036161,2]
[309751267,1704072648642,-311.91,0.00036161,2]
[309751268,1704072648651,-406.7,0.00036161,2]
[309751269,1704072648661,-406.7,0.00036161,2]
[309751270,1704072648670,-406.7,0.00036161,2]
[309751271,1704072648679,-406.7,0.00036161,2]
[309751272,1704072648688,-406.7,0.00036161,2]
[309751273,1704072648697,-406.7,0.00036161,2]
[309751274,1704072648708,-406.7,0.00036161,2]
[309751275,1704072648717,-406.7,0.00036161,2]
[309751276,1704072648729,-320.0,0.0003617,2]
[309751277,1704072648739,-259.32,0.00036193,2]
[309751278,1704072648748,-176.21587742,0.00036197,7]
[309751279,1704072648757,-666.66666,0.00036198,2]
[309751280,1704072648766,-150.0,0.00036241,2]
[309751281,1704072648775,-1107.28541372,0.00036291,2]
[309751282,1704072648784,-666.66666,0.00036298,2]
[309751283,1704072648793,-358.42297809,0.000363,9]
[309751284,1704072648806,-150.0,0.00036326,2]
[309751285,1704072648817,-666.66666,0.00036398,2]
[309751286,1704072648826,-19181.99535573,0.000364,4]
[309751287,1704072648835,-383.63990711,0.000364,4]
[309751288,1704072648844,-2000.0,0.000364,2]
[309751289,1704072648853,-150.42262754,0.00036404,2]
[309751290,1704072648862,-150.0,0.00036411,2]
[309751291,1704072648872,-241.09960937,0.0003643,4]
[309751292,1704072648881,-380.37,0.00036433,2]
[309751293,1704072648890,-666.66666,0.00036498,2]
[309751294,1704072648899,-1132.18502377,0.00036504,4]
[309751295,1704072648908,-500.0,0.00036505,2]
[309751296,1704072648918,-150.0,0.00036554,2]
[309751297,1704072648927,-336.09,0.00036581,2]
[309751298,1704072648938,-666.66666,0.00036598,2]
[309751299,1704072648947,-150.0,0.00036608,2]
[309751300,1704072648957,-150.0,0.00036608,2]
[309751301,1704072648966,-150.0,0.00036619,2]
[309751302,1704072648976,-150.0,0.00036636,2]
[309751303,1704072648985,-150.0,0.00036682,2]
[309751304,1704072648994,-666.66666,0.00036698,4]
[309751305,1704072649004,-203.68730998,0.000367,2]
[309751306,1704072649013,-201.94599346,0.00036707,2]
[309751307,1704072649023,-358.42297807,0.00036727,9]
[309751308,1704072649032,-1252.88117636,0.00036796,4]
[309751309,1704072649042,-251.81944836,0.00036796,4]
[309751310,1704072649051,-930.04441844,0.00036796,2]
[309751311,1704072649061,-2261.29725653,0.00036796,4]
[309751312,1704072649070,-1230.52210773,0.00036796,4]
[309751313,1704072649079,-526.86634552,0.00036796,4]
[309751314,1704072649089,-155.0,0.00036796,2]
[309751315,1704072649098,-540.53733364,0.00036796,4]
[309751316,1704072649107,-1852.84792754,0.00036796,4]
[309751317,1704072649116,-200.0,0.00036796,2]
[309751318,1704072649125,-214.21133708,0.00036796,4]
[309751319,1704072649135,-416.246012,0.00036796,4]
[309751320,1704072649144,-1074.86246861,0.00036796,4]
[309751321,1704072649153,-5000.0,0.00036796,3]
[309751322,1704072649162,-155.0,0.00036797,2]
[309751323,1704072649171,-33614.31595587,0.00036797,4]
[309751324,1704072649181,-362.5696016,0.00036798,4]
[309751325,1704072649190,-666.66666,0.00036798,2]
[309751326,1704072649200,-424.67906134,0.00036799,4]
[309751327,1704072649209,-409.5504781,0.00036799,4]
[309751328,1704072649218,-300.0,0.00036799,2]
[309751329,1704072649228,-300.0,0.00036799,2]
[309751330,1704072649237,-187.6400842,0.00036799,2]
[309751331,1704072649246,-298.9652747,0.00036799,2]
[309751332,1704072649255,-646313.38927188,0.000368,5]
[309751333,1704072649264,-305.10993716,0.000368,2]
[309751334,1704072649274,-1000.0,0.000368,2]
[309751335,1704072649283,-151.0,0.000368,7]
[309751336,1704072649292,-4838.3384035,0.00036807,2]
[309751337,1704072649301,-55790.8887432,0.00036807,2]
[309751338,1704072649311,-559.7288978,0.00036807,2]
[309751339,1704072649320,-187.8797931,0.00036807,2]
[309751340,1704072649329,-2578.9260462,0.00036807,2]
[309751341,1704072649340,-242.5602293,0.00036825,2]
[309751342,1704072649349,-187.20901983,0.0003685,2]
[309751343,1704072649358,-175.81,0.00036858,2]
[309751344,1704072649368,-219.74,0.00036867,2]
[309751345,1704072649377,-150.0,0.00036878,2]
[309751346,1704072649386,-666.240101,0.00036898,2]
[309751347,1704072649395,-625.43465934,0.000369,4]
[309751348,1704072649415,-12621.54784732,0.000369,4]
[309751349,1704072649426,-3969.71376377,0.000369,2]
[309751353,1704072835659,-588.8737,0.000229,2]
[309751354,1704072835683,-1373.4854,0.000229,2]
[309751355,1704072849885,160.26450303,0.00038972,120]
[309751369,1704073831995,-155.0,0.00026891,2]
[309751370,1704073832008,-111.569,0.00026892,2]
[309751371,1704073832021,-381.27079718,0.00026892,2]
[309751372,1704073832031,-442.51803969,0.00026892,2]
[309751373,1704073832048,-456.60845873,0.00026892,2]
[309751374,1704073832059,-300.0,0.00026892,2]
[309751375,1704073832089,-210.78514703,0.00026892,2]
[309751376,1704073832136,-419.88124136,0.00026892,2]
[309751377,1704073832147,-1033.7,0.00026892,2]
[309751378,1704073832192,-1323.38633923,0.00026892,2]
[309751402,1704073838033,-2228.07086495,0.00026892,2]
[309751403,1704073838044,-894.12913549,0.00026893,2]
[309751404,1704073838056,-1267.2108,0.00026893,2]
[309751405,1704073838068,-528.85212989,0.00026893,2]
[309751406,1704073839413,-1230.15952033,0.00026893,2]
[309751407,1704073839425,-2230.04047989,0.00026893,2]
[309751408,1704073839580,-701.880632,0.00026893,2]
[309751409,1704073839590,-450.0,0.00027,3]
[309751410,1704073839601,-165.76184998,0.00027483,2]
[309751411,1704073839611,-711.08,0.00027591,2]
[309751412,1704073839621,-729.24,0.00027592,2]
[309751413,1704073839631,-736.85,0.00027594,2]
[309751414,1704073839640,-722.97,0.00027595,2]
[309751415,1704073839650,-518.63,0.00027596,2]
[309751416,1704073839661,-716.44,0.00027596,2]
[309751417,1704073839672,-644.46,0.00027597,2]
[309751418,1704073839684,-733.84,0.00027671,2]
[309751419,1704073839694,-712.96,0.00027679,2]
[309751420,1704073839704,-735.2,0.00027697,2]
[309751421,1704073839714,-735.85,0.00027697,2]
[309751422,1704073839725,-711.51,0.00027697,2]
[309751423,1704073839737,-666.2077325,0.00027697,2]
[309751429,1704073840508,-61.2022675,0.00027697,2]
[309751430,1704073840518,-262.72378197,0.00027697,2]
[309751431,1704073840527,-199.69263487,0.00027697,2]
[309751432,1704073840541,-5520.13710685,0.00027697,2]
[309751433,1704073840551,-363.37339701,0.00027697,2]
[309751434,1704073840563,-640.04938049,0.00027698,2]
[309751435,1704073840578,-759.85151872,0.00029999,2]
[309751436,1704073840588,-2974.80986836,0.0003,2]
[309751437,1704073840602,-6632.48050911,0.0003,2]
[309751438,1704073840611,-133.63995364,0.0003,2]
[309751439,1704073841214,-21.36004636,0.0003,2]
[309751440,1704073841223,-1229.15118264,0.0003,2]
[309751441,1704073841379,-8770.85355575,0.0003,2]
[309751442,1704073841389,-266.25,0.00032004,2]
[309751443,1704073841398,-259.0,0.0003239,2]
[309751444,1704073841408,-165.76184997,0.00033171,2]
[309751445,1704073841417,-259.0,0.00033324,2]
[309751446,1704073841426,-750.0,0.00033482,2]
[309751447,1704073841436,-322.9,0.00033516,2]
[309751449,1704073841445,-152.12,0.00033582,2]
[309751450,1704073841455,-155.0,0.00033635,2]
[309751451,1704073841465,-250.0,0.00033691,111]
[309751452,1704073841475,-250.0,0.00033827,2]
[309751453,1704073841486,-185.17,0.00033833,2]
[309751454,1704073841495,-1796.18161403,0.00033987,7]
[309751460,1704073842871,-190.94965879,0.00029999,2]
[309751461,1704073842880,-703.81838597,0.00033987,7]
[309751462,1704073842889,-1000.0,0.00034,4]
[309751463,1704073842898,-163.46,0.00034031,2]
[309751464,1704073842907,-155.71,0.00034247,2]
[309751466,1704073842916,-259.0,0.00034258,2]
[309751467,1704073842925,-266.25,0.00034267,2]
[309751468,1704073842935,-150.0,0.00034282,2]
[309751469,1704073842945,-155.71,0.00034627,2]
[309751470,1704073842954,-152.12,0.00034724,2]
[309751471,1704073842966,-150.0,0.00034782,2]
[309751472,1704073842975,-851.86,0.00034787,2]
[309751473,1704073842983,-6089.19,0.00034874,2]
[309751474,1704073842994,-150.0,0.00034896,2]
[309751475,1704073843004,-163.46,0.00034918,2]
[309751476,1704073843015,-972.67004748,0.00034996,4]
[309751477,1704073843024,-182.83552799,0.00034999,4]
[309751478,1704073843033,-692.46844958,0.00035,4]
[309751479,1704073843042,-9080.55625281,0.00035,2]
[309751480,1704073843057,-2870.2045414,0.00035,2]
[309751481,1704073843070,-4505.41313032,0.00035,2]
[309751482,1704073843079,-155.71,0.00035008,2]
[309751483,1704073843088,-150.0,0.00035015,2]
[309751484,1704073843098,-150.0,0.0003504,2]
[309751485,1704073843107,-555.55555,0.00035098,2]
[309751486,1704073843117,-173.51,0.00035172,2]
[309751487,1704073843128,-259.0,0.00035191,2]
[309751488,1704073843140,-555.55555,0.00035198,2]
[309751489,1704073843148,-150.0,0.00035275,2]
[309751490,1704073843158,-150.0,0.00035275,2]
[309751491,1704073843168,-150.0,0.00035275,2]
[309751492,1704073843179,-555.55555,0.00035298,2]
[309751493,1704073843189,-155.71,0.00035388,2]
[309751494,1704073843199,-555.55555,0.00035398,2]
[309751495,1704073843210,-150.0,0.00035458,2]
[309751496,1704073843221,-150.0,0.00035492,2]
[309751497,1704073843230,-555.55555,0.00035498,2]
[309751498,1704073843240,-555.55555,0.00035598,2]
[309751499,1704073843250,-150.0,0.00035616,2]
[309751500,1704073843265,-1258.35552406,0.00035652,10]
[309751530,1704073846240,-439.04658523,0.00035652,10]
[309751533,1704073870660,22037.6409,0.00023,2]
[309751534,1704073870896,227.67829185,0.00038972,90]
[309751535,1704073884626,360.17858829,0.00038972,120]
[309751536,1704073884881,1205.73419382,0.00038972,60]
[309751537,1704073888194,197.54586861,0.00038972,30]
[309751538,1704073889399,254.53334269,0.00038972,30]
[309751539,1704073895146,671.09883562,0.00038972,30]
[309751540,1704073902427,571.38201374,0.00038972,30]
[309751541,1704073916697,1978.31409751,0.00038972,120]
[309751542,1704073985283,202.70663252,0.00038972,30]
[309751543,1704073996852,188.96024235,0.00038972,120]
[309751544,1704074009877,172.09094664,0.00038972,120]
[309751545,1704074014008,204.06312606,0.00038972,30]
[309751548,1704074059960,3192.7881413,0.00038972,120]
[309751549,1704074060128,159.30203205,0.00038972,120]
[309751550,1704074060546,290.42938212,0.00038972,120]
[309751552,1704074061977,1733.90720195,0.00038972,30]
[309751553,1704074064062,739.66175289,0.00038972,120]
[309751554,1704074064761,457.85009425,0.00038972,120]
[309751555,1704074065057,362.00700678,0.00038972,120]
[309751556,1704074158982,6282.39524173,0.00038972,30]
[309751557,1704074268675,-155.0,0.00022667,2]
[309751558,1704074268700,-165.76184997,0.00022668,2]
[309751559,1704074268721,-2931.92111189,0.00022669,2]
[309751560,1704074268747,-833.4551,0.0002267,2]
[309751561,1704074268769,-6414.95009099,0.00022768,2]
[309751562,1704074268789,-210.34928451,0.00022768,2]
[309751563,1704074268809,-232.0,0.00022768,2]
[309751564,1704074268830,-358.85928627,0.00022769,4]
[309751565,1704074268850,-98916.0,0.0002277,2]
[309751566,1704074268870,-1462.1,0.000228,2]
[309751567,1704074268890,-1466.7455,0.000229,2]
[309751568,1704074268909,-188.4048,0.000229,2]
[309751569,1704074268930,-13754.7349,0.000229,2]
[309751570,1704074268951,-175.02319389,0.000229,2]
[309751571,1704074268971,-187.95650841,0.000229,2]
[309751572,1704074268991,-206.75420773,0.000229,2]
[309751573,1704074269012,-1063.97319607,0.000229,2]
[309751574,1704074269032,-284.0201027,0.000229,2]
[309751575,1704074269052,-152.70568045,0.000229,2]
[309751576,1704074269072,-402.86407726,0.00022999,2]
[309751577,1704074269093,-176.10924039,0.00022999,2]
[309751578,1704074269114,-500.0,0.00022999,2]
[309751579,1704074269134,-153.53592948,0.00022999,2]
[309751580,1704074269157,-258.81719004,0.00022999,2]
[309751581,1704074269178,-172.65603311,0.00022999,2]
[309751582,1704074269197,-1000.0,0.00022999,2]
[309751583,1704074269218,-1683022.3602359,0.00023,2]
[309751584,1704074269239,-253808.06865911,0.00023,2]
[309751585,1704074716478,214.03192462,0.00038951,30]
[309751593,1704074915254,10000.0,0.0002,2]
[309751603,1704075032074,-155.0,0.00023999,2]
[309751604,1704075032085,-180.412,0.00024,2]
[309751605,1704075032098,-2604.52123931,0.00024,2]
[309751606,1704075032111,-424.83618571,0.00024,2]
[309751607,1704075032139,-727.98244051,0.00024,2]
[309751608,1704075032183,-2816.16281508,0.00024,2]
[309751609,1704075032286,-594.71980906,0.00024,2]
[309751610,1704075032299,-421.07761078,0.00024,2]
[309751611,1704075032341,-566.4447676,0.00024,2]
[309751612,1704075032355,-357.61614109,0.00024,2]
[309751706,1704075038198,-1306.22699086,0.00024,2]
[309751707,1704075038207,-1012.53705553,0.00025,3]
[309751708,1704075038218,-1464.9551161,0.00025,2]
[309751709,1704075038497,-8535.0448839,0.00025,2]
[309751710,1704075038507,-1393.95615594,0.000264,2]
[309751711,1704075038516,-1967.0,0.000276,2]
[309751712,1704075038527,-29934.0,0.000276,2]
[309751713,1704075038536,-2421.42514603,0.00027699,2]
[309751714,1704075038546,-10000.0,0.00028,2]
[309751715,1704075038556,-10000.0,0.00028,2]
[309751716,1704075038565,-5000.0,0.00029,2]
[309751717,1704075038575,-155.0,0.0003,2]
[309751718,1704075038585,-9607.29037747,0.0003,2]
[309751719,1704075038595,-13306.819999,0.0003,2]
[309751720,1704075038605,-150.99,0.0003,2]
[309751721,1704075038614,-10000.0,0.000302,2]
[309751722,1704075038623,-10000.0,0.000303,2]
[309751723,1704075038633,-10000.0,0.000305,2]
[309751724,1704075038642,-10000.0,0.000305,2]
[309751725,1704075038652,-261.94,0.00030582,2]
[309751726,1704075038661,-10000.0,0.000306,2]
[309751727,1704075038671,-10000.0,0.000306,2]
[309751728,1704075038680,-10000.0,0.000306,2]
[309751729,1704075038690,-10000.0,0.000306,2]
[309751730,1704075038699,-10000.0,0.000306,2]
[309751731,1704075038708,-185.04,0.00030805,10]
[309751732,1704075038718,-888.89,0.00030828,2]
[309751733,1704075038727,-163.46,0.00030849,2]
[309751734,1704075038737,-5074.32,0.00030984,2]
[309751735,1704075038746,-10000.0,0.00031,2]
[309751736,1704075038756,-85411.00978063,0.00032,4]
[309751737,1704075038765,-10000.0,0.00032,2]
[309751738,1704075038774,-150.07453906,0.00032271,5]
[309751739,1704075038786,-169.08,0.00032371,2]
[309751740,1704075038795,-250.0,0.00032406,2]
[309751741,1704075038806,-185.18,0.00032558,2]
[309751742,1704075038815,-152.12,0.00032616,2]
[309751743,1704075038825,-261.94,0.00032846,2]
[309751744,1704075038834,-2500.0,0.00032877,7]
[309751745,1704075038843,-203.61,0.00032877,15]
[309751746,1704075038852,-682.1483917,0.000329,2]
[309751747,1704075038861,-169.08,0.0003318,2]
[309751748,1704075038870,-488.97191663,0.000335,4]
[309751749,1704075038879,-1000.0,0.00033624,2]
[309751750,1704075038888,-212.0,0.00033879,2]
[309751751,1704075038897,-152.12,0.00033986,2]
[309751752,1704075038906,-169.08,0.00033989,2]
[309751753,1704075038916,-1000.0,0.00034,4]
[309751754,1704075038928,-153.87,0.00034018,2]
[309751755,1704075038938,-444.44444,0.00034098,2]
[309751756,1704075038949,-150.07453905,0.00034178,6]
[309751757,1704075038958,-444.44444,0.00034198,2]
[309751758,1704075038967,-2042.45994234,0.00034237,10]
[309751759,1704075038977,-444.44444,0.00034298,2]
[309751760,1704075038986,-444.44444,0.00034398,2]
[309751761,1704075038995,-150.0,0.00034453,2]
[309751762,1704075039004,-150.0,0.00034453,2]
[309751763,1704075039013,-150.0,0.00034453,2]
[309751764,1704075039022,-150.0,0.00034453,2]
[309751765,1704075039032,-2336.84351938,0.0003449,7]
[309751766,1704075039041,-444.44444,0.00034498,2]
[309751767,1704075039050,-471.14598496,0.000345,2]
[309751768,1704075039060,-2775.0,0.000345,2]
[309751769,1704075039070,-500.0,0.000345,2]
[309751770,1704075039078,-444.44444,0.00034598,2]
[309751771,1704075039088,-150.0,0.00034601,2]
[309751772,1704075039097,-888.89,0.00034682,2]
[309751773,1704075039106,-2601.98009943,0.00034698,14]
[309751774,1704075039115,-444.44444,0.00034698,2]
[309751775,1704075039125,-182.36597909,0.00034751,2]
[309751776,1704075039135,-2336.84351938,0.00034788,7]
[309751777,1704075039146,-444.44444,0.00034798,2]
[309751778,1704075039156,-169.08,0.00034798,2]
[309751779,1704075039166,-14748.25805065,0.00034818,2]
[309751780,1704075039177,-150.0,0.00034875,2]
[309751781,1704075039187,-16357.9046357,0.0003488,7]
[309751782,1704075039198,-63094.7750233,0.0003489,7]
[309751783,1704075039208,-169.23541449,0.0003489,2]
[309751784,1704075039217,-444.44444,0.00034898,2]
[309751785,1704075039226,-35929.02287982,0.000349,2]
[309751786,1704075039242,-101305.2048468,0.000349,2]
[309751787,1704075039262,-3453.44999978,0.000349,2]
[309751795,1704075040605,-16786.87275604,0.000349,2]
[309751797,1704075040617,-695.7,0.000349,2]
[309751800,1704075040712,-2426.00951792,0.000349,2]
[309751808,1704075043080,-2404.75725882,0.000349,2]
[309751809,1704075043091,-2207.93868141,0.000349,2]
[309751810,1704075043102,-33780.65602833,0.000349,2]
[309751811,1704075043113,-615.51488204,0.000349,2]
[309751812,1704075043125,-8329.24645909,0.000349,2]
[309751813,1704075043140,-5408.94716729,0.000349,2]
[309751814,1704075043149,-150.0,0.00034933,2]
[309751815,1704075043158,-150.0,0.00034956,2]
[309751816,1704075043167,-150.0,0.00034978,2]
[309751817,1704075043176,-26.90725465,0.00034998,14]
[309751818,1704075043192,-866.41222462,0.00034998,14]
[309751819,1704075043201,-444.44444,0.00034998,2]
[309751820,1704075043210,-251.29166314,0.00035,4]
[309751821,1704075043219,-10000.0,0.00035,4]
[309751822,1704075043228,-1333.78,0.00035,2]
[309751823,1704075043238,-555.55555,0.00035098,2]
[309751824,1704075043249,-261.94,0.0003511,2]
[309751825,1704075043260,-150.0,0.00035156,2]
[309751826,1704075043270,-555.55555,0.00035198,2]
[309751827,1704075043280,-167.16656,0.0003526,2]
[309751828,1704075043289,-267.79,0.00035275,2]
[309751829,1704075043298,-300.0,0.00035275,2]
[309751830,1704075043309,-555.55555,0.00035298,2]
[309751831,1704075043319,-150.0,0.00035317,2]
[309751832,1704075043330,-152.12,0.00035356,2]
[309751833,1704075043340,-153.84,0.00035369,2]
[309751834,1704075043349,-555.55555,0.00035398,2]
[309751835,1704075043360,-676.70088734,0.00035425,4]
[309751836,1704075043369,-150.0,0.00035443,2]
[309751837,1704075043378,-555.55555,0.00035498,2]
[309751838,1704075043387,-150.0,0.00035547,2]
[309751839,1704075043396,-5000.0,0.00035561,2]
[309751840,1704075043406,-150.0,0.00035596,2]
[309751841,1704075043414,-555.55555,0.00035598,2]
[309751842,1704075043423,-169.08,0.00035608,2]
[309751843,1704075043432,-150.0,0.00035616,2]
[309751844,1704075043441,-150.0,0.00035688,2]
[309751845,1704075043450,-555.55555,0.00035698,2]
[309751846,1704075043460,-1109.35684809,0.00035766,4]
[309751848,1704075043469,-155.71,0.00035769,2]
[309751850,1704075043478,-840.75024718,0.00035785,4]
[309751852,1704075043487,-508.23,0.00035788,10]
[309751854,1704075043498,-555.55555,0.00035798,2]
[309751855,1704075043508,-180.0,0.00035814,2]
[309751856,1704075043517,-218.0225818,0.0003589,2]
[309751857,1704075043527,-555.55555,0.00035898,2]
[309751858,1704075043536,-1000.0,0.000359,2]
[309751859,1704075043546,-2000.0,0.000359,2]
[309751860,1704075043555,-555.55555,0.00035998,2]
[309751861,1704075043565,-816.9177316,0.00036,4]
[309751862,1704075043575,-10000.0,0.00036,4]
[309751863,1704075043584,-5000.0,0.00036029,2]
[309751864,1704075043596,-2042.45994234,0.00036039,10]
[309751865,1704075043610,-150.07453905,0.00036086,7]
[309751866,1704075043620,-2123.91858967,0.00036089,2]
[309751867,1704075043630,-2123.91858964,0.00036089,2]
[309751868,1704075043640,-489.1385921,0.00036089,2]
[309751869,1704075043657,-1634.77999754,0.00036089,2]
[309751870,1704075043666,-2123.91858964,0.00036089,2]
[309751871,1704075043676,-666.66666,0.00036098,2]
[309751872,1704075043685,-259.0,0.00036125,2]
[309751873,1704075043695,-500.0,0.00036147,2]
[309751874,1704075043705,-155.71,0.00036149,2]
[309751875,1704075043714,-600.86207155,0.00036154,4]
[309751876,1704075043724,-666.66666,0.00036198,4]
[309751877,1704075043734,-150.0,0.00036257,2]
[309751878,1704075043745,-666.66666,0.00036298,2]
[309751879,1704075043756,-150.0,0.00036306,2]
[309751880,1704075043765,-150.0,0.00036366,2]
[309751881,1704075043778,-666.66666,0.00036398,4]
[309751882,1704075043791,-150.0,0.00036423,2]
[309751883,1704075043803,-666.66666,0.00036498,2]
[309751884,1704075043813,-150.0,0.0003651,2]
[309751885,1704075043824,-150.0,0.00036519,2]
[309751886,1704075043833,-1898.55573036,0.00036529,4]
[309751887,1704075044083,-2627.17155993,0.00036529,4]